fUST/lending_fUST_20250828
["ID","MTS","AMOUNT","RATE_DAILY","PERIOD"]
[381705825,1756315885520,-480.0,0.00022739,2]
[381705826,1756315885529,-480.0,0.00022739,2]
[381705827,1756315885539,-480.0,0.00022739,2]
[381705828,1756315885549,-480.0,0.00022739,2]
[381705829,1756315885560,-480.0,0.00022739,2]
[381705830,1756315885570,-480.0,0.00022739,2]
[381705831,1756315885580,-480.0,0.00022739,2]
[381705832,1756315885593,-833.89,0.00022739,2]
[381705833,1756315885603,-1635.95,0.00022739,2]
[381705834,1756315885614,-480.0,0.00022739,2]
[381705835,1756315885623,-616.04,0.00022739,2]
[381705836,1756315885632,-1308.59,0.00022739,2]
[381705837,1756315885644,-833.28,0.00022739,2]
[381705838,1756315885653,-480.0,0.00022739,2]
[381705839,1756315885663,-480.0,0.00022739,2]
[381705840,1756315885673,-1328.04,0.00022739,2]
[381705841,1756315885685,-480.0,0.00022739,2]
[381705842,1756315885694,-491.24,0.00022739,2]
[381705843,1756315885703,-6376.86,0.00022739,2]
[381705844,1756315885713,-480.0,0.00022739,2]
[381705845,1756315885721,-480.0,0.00022739,2]
[381705846,1756315885731,-1366.07,0.00022739,2]
[381705847,1756315885740,-480.0,0.00022739,2]
[381705848,1756315885751,-480.0,0.00022739,2]
[381705849,1756315885761,-480.0,0.00022739,2]
[381705850,1756315885770,-811.3,0.00022739,2]
[381705851,1756315885779,-480.0,0.00022739,2]
[381705852,1756315885790,-480.0,0.00022739,2]
[381705853,1756315885799,-1738.63,0.00022739,2]
[381705854,1756315885808,-597.4,0.00022739,2]
[381705855,1756315885817,-480.0,0.00022739,2]
[381705856,1756315885828,-1230.54,0.00022739,2]
[381705857,1756315885837,-5290.09,0.00022739,2]
[381705858,1756315885846,-480.0,0.00022739,2]
[381705859,1756315885855,-774.22,0.00022739,2]
[381705860,1756315885864,-681.82,0.00022739,2]
[381705861,1756315885875,-480.0,0.00022739,2]
[381705862,1756315885886,-683.68,0.00022739,2]
[381705863,1756315885895,-864.24,0.00022739,2]
[381705864,1756315885904,-1277.71,0.00022739,2]
[381705865,1756315885913,-480.0,0.00022739,2]
[381705866,1756315885924,-480.0,0.00022739,2]
[381705867,1756315885933,-1562.72,0.00022739,2]
[381705868,1756315885943,-480.0,0.00022739,2]
[381705869,1756315885952,-480.0,0.00022739,2]
[381705870,1756315885961,-480.0,0.00022739,2]
[381705871,1756315885970,-480.0,0.00022739,2]
[381705872,1756315885979,-480.0,0.00022739,2]
[381705873,1756315885990,-1230.71,0.00022739,2]
[381705874,1756315885999,-586.58,0.00022739,2]
[381705875,1756315886010,-480.0,0.00022739,2]
[381705876,1756315886019,-898.6,0.00022739,2]
[381705877,1756315886031,-480.0,0.00022739,2]
[381705878,1756315886040,-480.0,0.00022739,2]
[381705879,1756315886050,-480.0,0.00022739,2]
[381705880,1756315886060,-682.12,0.00022739,2]
[381705881,1756315886071,-480.0,0.00022739,2]
[381705882,1756315886080,-2720.08,0.00022739,2]
[381705883,1756315886089,-1400.27,0.00022739,2]
[381705884,1756315886098,-480.0,0.00022739,2]
[381705885,1756315886107,-480.0,0.00022739,2]
[381705886,1756315886117,-480.0,0.00022739,2]
[381705887,1756315886126,-1633.28,0.00022739,2]
[381705888,1756315886134,-480.0,0.00022739,2]
[381705889,1756315886144,-984.77,0.00022739,2]
[381705890,1756315886153,-840.57,0.00022739,2]
[381705891,1756315886163,-480.0,0.00022739,2]
[381705892,1756315886172,-554.05,0.00022739,2]
[381705893,1756315886183,-2050.68,0.00022739,2]
[381705894,1756315886194,-713.12,0.00022739,2]
[381705895,1756315886204,-1927.62,0.00022739,2]
[381705896,1756315886213,-480.0,0.00022739,2]
[381705897,1756315886225,-480.0,0.00022739,2]
[381705898,1756315886235,-480.0,0.00022739,2]
[381705899,1756315886245,-793.66,0.00022739,2]
[381705900,1756315886254,-480.0,0.00022739,2]
[381705901,1756315886264,-531.54,0.00022739,2]
[381705902,1756315886273,-480.0,0.00022739,2]
[381705903,1756315886283,-480.0,0.00022739,2]
[381705904,1756315886293,-699.19,0.00022739,2]
[381705905,1756315886302,-480.0,0.00022739,2]
[381705906,1756315886312,-480.0,0.00022739,2]
[381705907,1756315886323,-480.0,0.00022739,2]
[381705908,1756315886332,-480.0,0.00022739,2]
[381705909,1756315886342,-480.0,0.00022739,2]
[381705910,1756315886352,-480.0,0.00022739,2]
[381705911,1756315886362,-480.0,0.00022739,2]
[381705912,1756315886372,-525.84,0.00022739,2]
[381705913,1756315886382,-480.0,0.00022739,2]
[381705914,1756315886391,-708.0,0.00022739,2]
[381705915,1756315886401,-549.77948427,0.00022739,2]
[381705916,1756315886410,-4922.48,0.00022739,2]
[381705917,1756315886419,-480.0,0.00022739,2]
[381705918,1756315886430,-1873.21,0.00022739,2]
[381705919,1756315886439,-480.0,0.00022739,2]
[381705920,1756315886449,-480.0,0.00022739,2]
[381705921,1756315886459,-480.0,0.00022739,2]
[381705922,1756315886468,-480.0,0.00022739,2]
[381705923,1756315886478,-2273.72,0.00022739,2]
[381705924,1756315886488,-480.0,0.00022739,2]
[381705925,1756315886497,-542.01,0.00022739,2]
[381705926,1756315886508,-480.0,0.00022739,2]
[381705927,1756315886517,-480.0,0.00022739,2]
[381705928,1756315886526,-480.0,0.00022739,2]
[381705929,1756315886537,-480.0,0.00022739,2]
[381705930,1756315886546,-480.0,0.00022739,2]
[381705931,1756315886556,-480.0,0.00022739,2]
[381705932,1756315886565,-620.03,0.00022739,2]
[381705933,1756315886576,-500.0,0.00022739,2]
[381705934,1756315886586,-480.0,0.00022739,2]
[381705935,1756315886599,-480.0,0.00022739,2]
[381705936,1756315886609,-3730.3,0.00022739,2]
[381705937,1756315886619,-480.0,0.00022739,2]
[381705938,1756315886628,-1757.83,0.00022739,2]
[381705939,1756315886638,-480.0,0.00022739,2]
[381705940,1756315886648,-480.0,0.00022739,2]
[381705941,1756315886657,-480.0,0.00022739,2]
[381705942,1756315886666,-4335.47,0.00022739,2]
[381705943,1756315886676,-480.0,0.00022739,2]
[381705944,1756315886686,-380.78345748,0.00022739,2]
[381705945,1756315886696,-702.62,0.00022739,2]
[381705946,1756315886705,-1127.47,0.00022739,2]
[381705947,1756315886715,-1061.58,0.00022739,2]
[381705948,1756315886725,-653.99,0.00022739,2]
[381705949,1756315886734,-480.93,0.00022739,2]
[381705950,1756315886743,-4789.45,0.00022739,2]
[381705951,1756315886752,-480.0,0.00022739,2]
[381705952,1756315886762,-1335.71,0.00022739,2]
[381705953,1756315886771,-2106.23,0.00022739,2]
[381705954,1756315886781,-480.0,0.00022739,2]
[381705955,1756315886791,-480.0,0.00022739,2]
[381705956,1756315886801,-480.0,0.00022739,2]
[381705957,1756315886810,-4610.0,0.00022739,2]
[381705958,1756315886822,-480.0,0.00022739,2]
[381705959,1756315886832,-480.0,0.00022739,2]
[381705960,1756315886842,-264.33627476,0.00022739,2]
[381705961,1756315886851,-480.0,0.00022739,2]
[381705962,1756315886860,-480.0,0.00022739,2]
[381705963,1756315886869,-594.54,0.00022739,2]
[381705964,1756315886879,-1891.73,0.00022739,2]
[381705965,1756315886888,-480.0,0.00022739,2]
[381705966,1756315886897,-480.0,0.00022739,2]
[381705967,1756315886908,-1424.24,0.00022739,2]
[381705968,1756315886918,-480.0,0.00022739,2]
[381705969,1756315886927,-461.85512257,0.00022739,2]
[381705970,1756315886936,-490.12,0.00022739,2]
[381705971,1756315886945,-480.0,0.00022739,2]
[381705972,1756315886955,-2437.05,0.00022739,2]
[381705973,1756315886964,-480.0,0.00022739,2]
[381705974,1756315886973,-480.0,0.00022739,2]
[381705975,1756315886983,-480.0,0.00022739,2]
[381705976,1756315886994,-480.0,0.00022739,2]
[381705977,1756315887004,-480.0,0.00022739,2]
[381705978,1756315887015,-480.0,0.00022739,2]
[381705979,1756315887026,-632.92,0.00022739,2]
[381705980,1756315887036,-480.0,0.00022739,2]
[381705981,1756315887045,-480.0,0.00022739,2]
[381705982,1756315887055,-562.31,0.00022739,2]
[381705983,1756315887064,-1677.51,0.00022739,2]
[381705984,1756315887074,-480.0,0.00022739,2]
[381705985,1756315887083,-480.0,0.00022739,2]
[381705986,1756315887093,-296.20617396,0.00022739,2]
[381705987,1756315887102,-480.0,0.00022739,2]
[381705988,1756315887113,-500.19,0.00022739,2]
[381705989,1756315887123,-523.31,0.00022739,2]
[381705990,1756315887133,-480.0,0.00022739,2]
[381705991,1756315887143,-532.28,0.00022739,2]
[381705992,1756315887153,-480.0,0.00022739,2]
[381705993,1756315887165,-370.9984361,0.00022739,2]
[381705994,1756315887174,-505.61,0.00022739,2]
[381705995,1756315887184,-2955.96,0.00022739,2]
[381705996,1756315887197,-593.0,0.00022739,2]
[381705997,1756315887207,-874.64,0.00022739,2]
[381705998,1756315887217,-480.0,0.00022739,2]
[381705999,1756315887228,-480.0,0.00022739,2]
[381706000,1756315887237,-480.0,0.00022739,2]
[381706001,1756315887247,-525.49,0.00022739,2]
[381706002,1756315887259,-480.0,0.00022739,2]
[381706003,1756315887269,-481.84083818,0.00022739,2]
[381706004,1756315887278,-542.14,0.00022739,2]
[381706005,1756315887287,-1307.67,0.00022739,2]
[381706006,1756315887297,-480.0,0.00022739,2]
[381706007,1756315887306,-487.85,0.00022739,2]
[381706008,1756315887315,-3139.91,0.00022739,2]
[381706009,1756315887326,-790.4,0.00022739,2]
[381706010,1756315887335,-480.0,0.00022739,2]
[381706011,1756315887344,-673.27,0.00022739,2]
[381706012,1756315887353,-480.0,0.00022739,2]
[381706013,1756315887362,-480.0,0.00022739,2]
[381706014,1756315887372,-480.0,0.00022739,2]
[381706015,1756315887381,-490.27,0.00022739,2]
[381706016,1756315887391,-1507.95,0.00022739,2]
[381706017,1756315887400,-480.0,0.00022739,2]
[381706018,1756315887410,-704.88,0.00022739,2]
[381706019,1756315887420,-1488.87,0.00022739,2]
[381706020,1756315887430,-480.0,0.00022739,2]
[381706021,1756315887440,-504.58,0.00022739,2]
[381706022,1756315887449,-1155.37,0.00022739,2]
[381706023,1756315887459,-480.0,0.00022739,2]
[381706024,1756315887468,-480.0,0.00022739,2]
[381706025,1756315887478,-480.0,0.00022739,2]
[381706026,1756315887489,-1124.84,0.00022739,2]
[381706027,1756315887498,-480.0,0.00022739,2]
[381706028,1756315887508,-480.0,0.00022739,2]
[381706029,1756315887518,-3001.81,0.00022739,2]
[381706030,1756315887528,-480.0,0.00022739,2]
[381706031,1756315887537,-480.0,0.00022739,2]
[381706032,1756315887549,-852.13,0.00022739,2]
[381706033,1756315887559,-808.37,0.00022739,2]
[381706034,1756315887568,-480.0,0.00022739,2]
[381706035,1756315887580,-480.0,0.00022739,2]
[381706036,1756315887592,-845.32,0.00022739,2]
[381706037,1756315887758,-1712.6,0.00022739,2]
[381706038,1756315887786,-1056.32,0.00022739,2]
[381706039,1756315887796,-1736.27,0.00022739,2]
[381706040,1756315887805,-480.0,0.00022739,2]
[381706041,1756315887815,-480.0,0.00022739,2]
[381706042,1756315887826,-904.87,0.00022739,2]
[381706043,1756315887836,-480.0,0.00022739,2]
[381706044,1756315887845,-480.0,0.00022739,2]
[381706045,1756315887854,-809.45,0.00022739,2]
[381706046,1756315887864,-480.0,0.00022739,2]
[381706047,1756315887874,-480.0,0.00022739,2]
[381706048,1756315887884,-480.0,0.00022739,2]
[381706049,1756315887894,-480.0,0.00022739,2]
[381706050,1756315887904,-480.0,0.00022739,2]
[381706051,1756315887913,-481.70446029,0.00022739,2]
[381706052,1756315887923,-1631.08,0.00022739,2]
[381706053,1756315887933,-480.0,0.00022739,2]
[381706054,1756315887943,-480.0,0.00022739,2]
[381706055,1756315887953,-480.0,0.00022739,2]
[381706056,1756315887962,-480.0,0.00022739,2]
[381706057,1756315887971,-480.0,0.00022739,2]
[381706058,1756315887981,-480.0,0.00022739,2]
[381706059,1756315887991,-1112.0,0.00022743,2]
[381706060,1756315888001,-462.54880423,0.00022743,2]
[381706061,1756315888012,-409.19506388,0.00022743,2]
[381706062,1756315888021,-160.8926319,0.00022779,2]
[381706063,1756315888031,-800.0,0.00022801,2]
[381706064,1756315888040,-10219.21105672,0.0002282,2]
[381706065,1756315888050,-800.0,0.00022824,2]
[381706066,1756315888060,-155.56118263,0.00022824,3]
[381706067,1756315888070,-12707.75045307,0.0002283,3]
[381706068,1756315888083,-160.0,0.0002283,3]
[381706069,1756315888092,-425.44119842,0.0002283,3]
[381706070,1756315888101,-529.56067766,0.0002283,3]
[381706071,1756315888112,-216.14835892,0.0002283,3]
[381706072,1756315888121,-417.15472785,0.0002283,3]
[381706073,1756315888131,-835.98992799,0.0002292,2]
[381706074,1756315888141,-1680.0,0.00022939,2]
[381706075,1756315888151,-420.0,0.0002294,2]
[381706076,1756315888161,-227.0,0.0002294,2]
[381706077,1756315888170,-201.93286099,0.00022952,2]
[381706078,1756315888181,-586.16377958,0.00022968,2]
[381706079,1756315888190,-986.70754333,0.00022968,2]
[381706080,1756315888202,-1010.03703661,0.00022968,2]
[381706081,1756315888212,-162.14865375,0.00022968,2]
[381706082,1756315888222,-1000.0,0.00022968,2]
[381706083,1756315888232,-1500.0,0.00022968,2]
[381706084,1756315888243,-830.63040537,0.00022968,2]
[381706085,1756315888254,-1500.0,0.00022968,2]
[381706086,1756315888263,-1500.0,0.00022968,2]
[381706087,1756315888273,-1500.0,0.00022968,2]
[381706088,1756315888283,-1500.0,0.00022968,2]
[381706089,1756315888294,-899.999999,0.0002299,2]
[381706090,1756315888304,-3000.0,0.00023,2]
[381706091,1756315888313,-160.0,0.00023,2]
[381706092,1756315888325,-1000.0,0.00023,2]
[381706093,1756315888335,-845.298898,0.00023,3]
[381706094,1756315888344,-160.0,0.00023,3]
[381706095,1756315888354,-160.0,0.00023,3]
[381706096,1756315888364,-2005.00137845,0.00023,2]
[381706097,1756315888374,-217.23771399,0.00023,3]
[381706098,1756315888384,-232.59867797,0.00023,3]
[381706099,1756315888394,-160.0,0.00023,3]
[381706100,1756315888404,-160.0,0.00023,3]
[381706101,1756315888414,-160.0,0.00023,3]
[381706102,1756315888423,-3000.0,0.0002301,2]
[381706103,1756315888433,-59435.71020988,0.0002301,5]
[381706104,1756315888442,-386.20770271,0.00023013,2]
[381706105,1756315888452,-480.0,0.00023013,2]
[381706106,1756315888462,-487.24,0.00023013,2]
[381706107,1756315888472,-480.0,0.00023013,2]
[381706108,1756315888481,-480.0,0.00023013,2]
[381706109,1756315888491,-521.13,0.00023013,2]
[381706110,1756315888501,-480.0,0.00023013,2]
[381706111,1756315888512,-480.0,0.00023013,2]
[381706112,1756315888521,-480.0,0.00023013,2]
[381706113,1756315888531,-754.55,0.00023013,2]
[381706114,1756315888541,-480.0,0.00023013,2]
[381706115,1756315888551,-443.1953117,0.00023013,2]
[381706116,1756315888560,-480.0,0.00023013,2]
[381706117,1756315888570,-480.0,0.00023013,2]
[381706118,1756315888582,-480.0,0.00023013,2]
[381706119,1756315888594,-480.0,0.00023013,2]
[381706120,1756315888603,-480.0,0.00023013,2]
[381706121,1756315888612,-480.0,0.00023013,2]
[381706122,1756315888623,-480.0,0.00023013,2]
[381706123,1756315888633,-480.0,0.00023013,2]
[381706124,1756315888643,-1012.65,0.00023013,2]
[381706125,1756315888652,-480.0,0.00023013,2]
[381706126,1756315888662,-499.63,0.00023013,2]
[381706127,1756315888672,-359.59148184,0.00023013,2]
[381706128,1756315888681,-480.0,0.00023013,2]
[381706129,1756315888690,-480.0,0.00023013,2]
[381706130,1756315888700,-480.0,0.00023013,2]
[381706131,1756315888709,-480.0,0.00023013,2]
[381706132,1756315888718,-480.0,0.00023013,2]
[381706133,1756315888728,-480.0,0.00023013,2]
[381706134,1756315888738,-480.0,0.00023013,2]
[381706135,1756315888748,-480.0,0.00023013,2]
[381706136,1756315888759,-734.05,0.00023013,2]
[381706137,1756315888768,-487.48,0.00023013,2]
[381706138,1756315888776,-480.0,0.00023013,2]
[381706139,1756315888784,-400.0,0.00023013,2]
[381706140,1756315888793,-480.0,0.00023013,2]
[381706141,1756315888801,-861.84,0.00023013,2]
[381706142,1756315888809,-480.0,0.00023013,2]
[381706143,1756315888818,-480.0,0.00023013,2]
[381706144,1756315888829,-549.29195571,0.00023013,2]
[381706145,1756315888838,-480.0,0.00023013,2]
[381706146,1756315888848,-480.0,0.00023013,2]
[381706147,1756315888858,-503.12179041,0.00023013,2]
[381706148,1756315888869,-480.0,0.00023013,2]
[381706149,1756315888879,-480.0,0.00023013,2]
[381706150,1756315888889,-480.0,0.00023013,2]
[381706151,1756315888899,-1003.54,0.00023013,2]
[381706152,1756315888909,-480.0,0.00023013,2]
[381706153,1756315888918,-480.0,0.00023013,2]
[381706154,1756315888929,-480.0,0.00023013,2]
[381706155,1756315888939,-480.0,0.00023013,2]
[381706156,1756315888949,-480.0,0.00023013,2]
[381706157,1756315888958,-480.0,0.00023013,2]
[381706158,1756315888967,-514.51136357,0.00023013,2]
[381706159,1756315888977,-547.19,0.00023013,2]
[381706160,1756315888987,-591.49,0.00023013,2]
[381706161,1756315888996,-480.0,0.00023013,2]
[381706162,1756315889006,-480.0,0.00023013,2]
[381706163,1756315889015,-440.9062726,0.00023013,2]
[381706164,1756315889024,-480.0,0.00023013,2]
[381706165,1756315889034,-480.0,0.00023013,2]
[381706166,1756315889043,-480.0,0.00023013,2]
[381706167,1756315889053,-480.0,0.00023013,2]
[381706168,1756315889063,-480.0,0.00023013,2]
[381706169,1756315889074,-480.0,0.00023013,2]
[381706170,1756315889084,-480.0,0.00023013,2]
[381706171,1756315889093,-501.98,0.00023013,2]
[381706172,1756315889103,-480.0,0.00023013,2]
[381706173,1756315889113,-480.0,0.00023013,2]
[381706174,1756315889123,-480.0,0.00023013,2]
[381706175,1756315889133,-653.06,0.00023013,2]
[381706176,1756315889143,-532.33,0.00023013,2]
[381706177,1756315889152,-368.00307532,0.00023013,2]
[381706178,1756315889162,-480.0,0.00023013,2]
[381706179,1756315889171,-480.0,0.00023013,2]
[381706180,1756315889181,-480.0,0.00023013,2]
[381706181,1756315889191,-480.0,0.00023013,2]
[381706182,1756315889201,-480.0,0.00023013,2]
[381706183,1756315889211,-480.0,0.00023013,2]
[381706184,1756315889220,-480.0,0.00023013,2]
[381706185,1756315889230,-513.4284111,0.00023013,2]
[381706186,1756315889239,-480.0,0.00023013,2]
[381706187,1756315889248,-480.0,0.00023013,2]
[381706188,1756315889257,-480.0,0.00023013,2]
[381706189,1756315889267,-480.0,0.00023013,2]
[381706190,1756315889276,-480.0,0.00023013,2]
[381706191,1756315889285,-381.17880081,0.00023013,2]
[381706192,1756315889294,-480.0,0.00023013,2]
[381706193,1756315889303,-480.0,0.00023013,2]
[381706194,1756315889313,-1524.71520324,0.00023013,2]
[381706195,1756315889323,-480.0,0.00023013,2]
[381706196,1756315889333,-480.0,0.00023013,2]
[381706197,1756315889342,-3427.17859808,0.00023013,2]
[381706198,1756315889352,-480.0,0.00023013,2]
[381706199,1756315889361,-480.0,0.00023013,2]
[381706200,1756315889370,-480.0,0.00023013,2]
[381706201,1756315889379,-521.62,0.00023013,2]
[381706202,1756315889388,-553.62,0.00023013,2]
[381706203,1756315889398,-480.0,0.00023013,2]
[381706204,1756315889407,-480.0,0.00023013,2]
[381706205,1756315889417,-480.0,0.00023013,2]
[381706206,1756315889426,-480.0,0.00023013,2]
[381706207,1756315889436,-480.0,0.00023013,2]
[381706208,1756315889446,-480.0,0.00023013,2]
[381706209,1756315889456,-633.41,0.00023013,2]
[381706210,1756315889466,-480.0,0.00023013,2]
[381706211,1756315889476,-480.0,0.00023013,2]
[381706212,1756315889485,-480.0,0.00023013,2]
[381706213,1756315889495,-480.84,0.00023013,2]
[381706214,1756315889504,-565.6315448,0.00023013,2]
[381706215,1756315889514,-480.0,0.00023013,2]
[381706216,1756315889523,-480.0,0.00023013,2]
[381706217,1756315889533,-480.0,0.00023013,2]
[381706218,1756315889543,-480.0,0.00023013,2]
[381706219,1756315889553,-647.08,0.00023013,2]
[381706220,1756315889562,-480.0,0.00023013,2]
[381706221,1756315889571,-559.93,0.00023013,2]
[381706222,1756315889585,-526.58518715,0.00023013,2]
[381706223,1756315889595,-480.0,0.00023013,2]
[381706224,1756315889605,-480.0,0.00023013,2]
[381706225,1756315889615,-480.0,0.00023013,2]
[381706226,1756315889624,-480.0,0.00023013,2]
[381706227,1756315889634,-483.58089724,0.00023013,2]
[381706228,1756315889643,-480.0,0.00023013,2]
[381706229,1756315889652,-480.0,0.00023013,2]
[381706230,1756315889664,-480.0,0.00023013,2]
[381706231,1756315889674,-609.46,0.00023013,2]
[381706232,1756315889683,-240.96530088,0.00023013,2]
[381706233,1756315889692,-480.0,0.00023013,2]
[381706234,1756315889702,-480.0,0.00023013,2]
[381706235,1756315889711,-480.0,0.00023013,2]
[381706236,1756315889720,-480.0,0.00023013,2]
[381706237,1756315889729,-480.0,0.00023013,2]
[381706238,1756315889739,-328.04481692,0.00023013,2]
[381706239,1756315889748,-555.02,0.00023013,2]
[381706240,1756315889757,-480.0,0.00023013,2]
[381706241,1756315889766,-480.0,0.00023013,2]
[381706242,1756315889775,-660.92,0.00023013,2]
[381706243,1756315889785,-369.13793001,0.00023013,2]
[381706244,1756315889794,-1475.07516834,0.00023013,2]
[381706245,1756315889804,-569.18,0.00023013,2]
[381706246,1756315889813,-1003.81,0.00023013,2]
[381706247,1756315889822,-680.33,0.00023013,2]
[381706248,1756315889832,-480.0,0.00023013,2]
[381706249,1756315889841,-365.18691165,0.00023013,2]
[381706250,1756315889850,-312.71338262,0.00023013,2]
[381706251,1756315889859,-480.0,0.00023013,2]
[381706252,1756315889868,-480.0,0.00023013,2]
[381706253,1756315889877,-480.0,0.00023013,2]
[381706254,1756315889886,-681.56,0.00023013,2]
[381706255,1756315889895,-480.0,0.00023013,2]
[381706256,1756315889904,-480.0,0.00023013,2]
[381706257,1756315889913,-480.0,0.00023013,2]
[381706258,1756315889922,-480.0,0.00023013,2]
[381706259,1756315889931,-480.0,0.00023013,2]
[381706260,1756315889941,-337.33962517,0.00023013,2]
[381706261,1756315889950,-465.02409394,0.00023013,2]
[381706262,1756315889959,-480.0,0.00023013,2]
[381706263,1756315889967,-480.0,0.00023013,2]
[381706264,1756315889977,-480.0,0.00023013,2]
[381706265,1756315889985,-480.0,0.00023013,2]
[381706266,1756315889994,-1465.34,0.00023013,2]
[381706267,1756315890003,-480.0,0.00023013,2]
[381706268,1756315890012,-480.0,0.00023013,2]
[381706269,1756315890021,-480.0,0.00023013,2]
[381706270,1756315890032,-544.04,0.00023013,2]
[381706271,1756315890041,-480.0,0.00023013,2]
[381706272,1756315890050,-480.0,0.00023013,2]
[381706273,1756315890059,-480.0,0.00023013,2]
[381706274,1756315890068,-1039.38,0.00023013,2]
[381706275,1756315890078,-480.0,0.00023013,2]
[381706276,1756315890087,-531.56,0.00023013,2]
[381706277,1756315890096,-157.26262287,0.00023013,2]
[381706278,1756315890105,-1343.03,0.00023013,2]
[381706279,1756315890114,-480.0,0.00023013,2]
[381706280,1756315890123,-480.0,0.00023013,2]
[381706281,1756315890193,-480.0,0.00023013,2]
[381706282,1756315890204,-600.0,0.00023013,2]
[381706283,1756315890213,-480.0,0.00023013,2]
[381706284,1756315890222,-480.0,0.00023013,2]
[381706285,1756315890231,-480.0,0.00023013,2]
[381706286,1756315890240,-500.0,0.00023013,2]
[381706287,1756315890251,-614.45,0.00023013,2]
[381706288,1756315890260,-480.0,0.00023013,2]
[381706289,1756315890270,-480.0,0.00023013,2]
[381706290,1756315890280,-480.0,0.00023013,2]
[381706291,1756315890290,-480.0,0.00023013,2]
[381706292,1756315890299,-480.0,0.00023013,2]
[381706293,1756315890308,-760.2,0.00023013,2]
[381706294,1756315890317,-530.93,0.00023013,2]
[381706295,1756315890327,-480.0,0.00023013,2]
[381706296,1756315890337,-1064.0,0.00023013,2]
[381706297,1756315890346,-480.0,0.00023013,2]
[381706298,1756315890355,-480.0,0.00023013,2]
[381706299,1756315890365,-480.0,0.00023013,2]
[381706300,1756315890375,-480.0,0.00023013,2]
[381706301,1756315890384,-480.0,0.00023013,2]
[381706302,1756315890393,-480.0,0.00023013,2]
[381706303,1756315890404,-892.04,0.00023013,2]
[381706304,1756315890415,-505.17,0.00023013,2]
[381706305,1756315890425,-662.34,0.00023013,2]
[381706306,1756315890434,-480.0,0.00023013,2]
[381706307,1756315890444,-480.0,0.00023013,2]
[381706308,1756315890454,-480.0,0.00023013,2]
[381706309,1756315890465,-480.0,0.00023013,2]
[381706310,1756315890475,-480.0,0.00023013,2]
[381706311,1756315890484,-480.0,0.00023013,2]
[381706312,1756315890494,-480.0,0.00023013,2]
[381706313,1756315890503,-480.0,0.00023013,2]
[381706314,1756315890513,-1566.48,0.00023013,2]
[381706315,1756315890522,-480.0,0.00023013,2]
[381706316,1756315890531,-480.0,0.00023013,2]
[381706317,1756315890540,-480.0,0.00023013,2]
[381706318,1756315890550,-480.0,0.00023013,2]
[381706319,1756315890559,-480.0,0.00023013,2]
[381706320,1756315890569,-480.0,0.00023013,2]
[381706321,1756315890579,-480.0,0.00023013,2]
[381706322,1756315890590,-703.96,0.00023013,2]
[381706323,1756315890601,-480.0,0.00023013,2]
[381706324,1756315890610,-480.0,0.00023013,2]